bitfinex-derivatives/quotes_SOLF0:USTF0_20250803
["timestamp","ask_amount","ask_price","bid_price","bid_amount"]
[1754179390816,1.17,158.55,158.44,3.48]
[1754179391419,1.17,158.51,158.44,3.48]
[1754179391626,1.17,158.54,158.44,3.48]
[1754179391827,6.3108,158.5,158.44,3.48]
[1754179392029,7.4808,158.5,158.44,3.48]
[1754179392324,7.4781,158.56,158.5,3.48]
[1754179392527,1.17,158.56,158.5,3.48]
[1754179392827,6.3088,158.55,158.5,3.48]
[1754179393025,6.3088,158.55,158.48,6.3109]
[1754179393026,1.17,158.55,158.51,3.48]
[1754179393823,1.17,158.55,158.49,6.3108]
[1754179394022,1.17,158.55,158.52,3.48]
[1754179394328,7.4788,158.55,158.52,3.48]
[1754179394528,1.17,158.55,158.52,3.48]
[1754179395227,1.17,158.56,158.38,3.48]
[1754179395817,6.3093,158.53,158.38,3.48]
[1754179396219,1.17,158.55,158.38,3.48]
[1754179396424,1.17,158.56,158.38,3.48]
[1754179397134,6.3104,158.51,158.46,3.48]
[1754179397328,1.17,158.53,158.46,3.48]
[1754179397833,1.17,158.56,158.46,3.48]
[1754179398032,130.4,158.57,158.52,3.48]
[1754179398239,597.89247858,158.71,158.52,3.48]
[1754179398532,6.305,158.64,158.52,3.48]
[1754179398832,1.17,158.67,158.52,3.48]
[1754179399033,6.3042,158.66,158.52,3.48]
[1754179399228,1.17,158.67,158.52,3.48]
[1754179399628,1.17,158.64,158.52,3.48]
[1754179400330,1.17,158.61,158.55,3.48]
[1754179400633,1.17,158.64,158.55,3.48]
[1754179400934,1.17,158.64,158.57,3.48]
[1754179401634,1.17,158.67,158.57,3.48]
[1754179401831,1.17,158.68,158.63,3.48]
[1754179402035,1.17,158.68,158.64,3.48]
[1754179402225,6.3043,158.66,158.64,3.48]
[1754179402425,130.02,158.7,158.6,6.3062]
[1754179402634,1.17,158.69,158.45,3.48]
[1754179402839,1.17,158.69,158.57,6.3075]
[1754179403131,1.17,158.69,158.58,3.48]
[1754179403530,1.17,158.69,158.45,3.48]
[1754179404032,6.3059,158.62,158.56,6.3078]
[1754179404231,1.17,158.64,158.57,3.48]
[1754179404436,130.0,158.63,158.55,3.48]
[1754179404635,1.17,158.62,158.55,3.48]
[1754179405036,6.3071,158.59,158.55,3.48]
[1754179405241,7.4771,158.59,158.56,3.48]
[1754179405543,130.0,158.63,158.57,3.48]
[1754179406140,1.17,158.69,158.57,3.48]
[1754179406340,131.13,158.69,158.57,3.48]
[1754179406537,6.3042,158.66,158.61,6.3058]
[1754179406741,6.3042,158.66,158.62,3.48]
[1754179406940,131.13,158.69,158.62,3.48]
[1754179407240,590.80060961,158.71,158.63,3.48]
[1754179407848,423.94,158.71,158.63,3.48]
[1754179408444,1.17,158.72,158.63,3.48]
[1754179408751,129.76,158.75,158.63,3.48]
[1754179408939,1.17,158.74,158.63,3.48]
[1754179409445,6.3024,158.71,158.66,6.3038]
[1754179409747,6.3024,158.71,158.63,3.48]
[1754179409748,1.17,158.74,158.67,3.22]
[1754179410047,1.17,158.74,158.68,6.3033]
[1754179410048,6.3016,158.73,158.68,6.3033]
[1754179410347,129.76,158.75,158.71,3.22]
[1754179410536,1.17,158.74,158.71,3.22]
[1754179410737,1.17,158.74,158.55,3.22]
[1754179411137,1.17,158.69,158.63,3.22]
[1754179411737,1.17,158.74,158.46,3.22]
[1754179411944,1.17,158.71,158.43,3.22]
[1754179412139,18.94,158.69,158.43,3.22]
[1754179412341,18.94,158.67,158.43,3.22]
[1754179412543,18.94,158.65,158.43,3.22]
[1754179412851,6.3082,158.56,158.43,3.22]
[1754179413152,1.17,158.59,158.52,6.3093]
[1754179413343,129.72,158.61,158.53,3.22]
[1754179413538,130.81,158.64,158.53,3.22]
[1754179414051,1.17,158.63,158.53,3.22]
[1754179414547,1.17,158.66,158.42,3.22]
[1754179414953,6.3056,158.63,158.56,6.3077]
[1754179415247,1.17,158.66,158.57,3.22]
[1754179416245,6.3058,158.62,158.56,6.3077]
[1754179416455,6.3058,158.62,158.59,3.22]
[1754179417251,6.3058,158.62,158.56,6.3077]
[1754179417252,6.3058,158.62,158.6,3.22]
[1754179417549,1.17,158.66,158.6,3.22]
[1754179417950,7.4749,158.64,158.6,3.22]
[1754179418149,1.17,158.64,158.6,3.22]
[1754179418348,1.17,158.72,158.6,3.22]
[1754179418549,1.17,158.7,158.6,3.22]
[1754179418750,1.17,158.7,158.61,6.306]
[1754179418951,1.17,158.7,158.62,3.22]
[1754179419957,1.17,158.7,158.5,3.22]
[1754179420144,130.29,158.72,158.5,3.22]
[1754179420347,1.17,158.71,158.63,3.22]
[1754179420955,6.3039,158.67,158.63,3.22]
[1754179421150,7.4739,158.67,158.63,3.22]
[1754179421745,7.4739,158.67,158.62,6.3053]
[1754179421746,7.4739,158.67,158.64,3.22]
[1754179422552,129.12,158.72,158.64,3.22]
[1754179422553,1.17,158.7,158.64,3.22]
[1754179423859,1.17,158.7,158.5,3.22]
[1754179424357,1.17,158.71,158.5,3.22]
[1754179424744,129.75,158.71,158.5,3.22]
[1754179424957,128.58,158.71,158.5,3.22]
[1754179425159,134.8822,158.71,158.5,3.22]
[1754179425655,134.8822,158.71,158.66,6.3038]
[1754179425852,136.0522,158.71,158.49,552.88]
[1754179426050,128.58,158.71,158.49,552.88]
[1754179426251,128.58,158.71,158.7,3.22]
[1754179426653,423.7,158.73,158.7,3.22]
[1754179426654,424.87,158.73,158.7,3.22]
[1754179427154,6.3021,158.71,158.7,3.22]
[1754179427351,6.3021,158.71,158.69,3.22]
[1754179427554,423.7,158.73,158.51,26.00095853]
[1754179427751,128.52,158.74,158.72,3.22]
[1754179428151,6.3013,158.73,158.72,3.22]
[1754179428457,128.52,158.74,158.72,3.22]
[1754179429749,6.3008,158.75,158.72,3.22]
[1754179431056,134.4602,158.76,158.72,6.3017]
[1754179431257,134.4602,158.76,158.73,3.22]
[1754179431459,135.6302,158.76,158.73,3.22]
[1754179431756,7.4697,158.78,158.74,3.22]
[1754179431950,127.94,158.77,158.74,3.22]
[1754179432159,129.11,158.77,158.74,3.22]
[1754179432656,135.41,158.77,158.74,3.22]
[1754179433852,134.24,158.77,158.74,3.22]
[1754179434054,134.24,158.77,158.72,6.3015]
[1754179434258,134.24,158.77,158.74,3.22]
[1754179434558,7.46,158.77,158.75,3.22]
[1754179434761,135.08,158.77,158.75,3.22]
[1754179434955,127.62,158.77,158.75,3.22]
[1754179435961,128.78,158.77,158.75,3.22]
[1754179436255,135.0798,158.77,158.75,3.22]
[1754179436655,127.62,158.77,158.74,3.22]
[1754179436860,127.62,158.77,158.76,3.22]
[1754179437057,127.34,158.79,158.63,3.22]
[1754179437260,133.6391,158.79,158.63,3.22]
[1754179437463,133.6391,158.79,158.75,6.3002]
[1754179437759,133.6391,158.79,158.77,3.22]
[1754179438359,127.34,158.79,158.78,3.31]
[1754179439157,6.2984,158.81,158.79,3.31]
[1754179439857,6.2986,158.8,158.79,3.31]
[1754179440062,552.04,158.82,158.79,3.31]
[1754179440266,6.2982,158.81,158.79,3.31]
[1754179440461,550.88,158.82,158.66,3.31]
[1754179440759,1.16,158.85,158.66,3.31]
[1754179440964,6.2971,158.84,158.81,3.31]
[1754179441164,6.2971,158.84,158.82,3.31]
[1754179441555,1.16,158.84,158.82,3.31]
[1754179441770,1.16,158.83,158.77,3.31]
[1754179442255,4.43821336,158.82,158.77,3.31]
[1754179442460,1.16,158.87,158.77,3.31]
[1754179442667,4.43504941,158.86,158.77,3.31]
[1754179442857,4.43504941,158.85,158.84,6.297]
[1754179443053,1.16,158.9,158.84,3.31]
[1754179443260,1.16,158.88,158.82,3.31]
[1754179443455,127.04,158.91,158.75,238.53150436]
[1754179443456,4.43395036,158.87,158.76,3.31]
[1754179443661,127.2,158.9,158.76,3.31]
[1754179443857,4.43033063,158.89,158.76,3.31]
[1754179444164,4.43033063,158.88,158.76,3.31]
[1754179444465,4.43033063,158.87,158.76,3.31]
[1754179444656,127.2,158.9,158.86,3.31]
[1754179444853,4.42598534,158.89,158.88,3.31]
[1754179445066,4.42598534,158.89,158.86,6.2959]
[1754179445262,4.42598534,158.88,158.87,3.31]
[1754179445760,127.2,158.9,158.87,6.2958]
[1754179445964,127.2,158.9,158.75,238.53150436]
[1754179445965,7.09186897,158.95,158.88,3.31]
[1754179446163,4.42155986,158.94,158.88,3.31]
[1754179446365,4.42155986,158.93,158.88,3.31]
[1754179446564,4.42155986,158.92,158.88,3.31]
[1754179446765,4.42155986,158.91,158.79,3.31]
[1754179446960,4.42155986,158.9,158.79,3.31]
[1754179447164,1.16,158.94,158.79,3.31]
[1754179447365,8.854e-05,158.93,158.81,3.31]
[1754179447566,1.16,158.98,158.81,3.31]
[1754179447761,1.16,158.98,158.83,3.31]
[1754179448063,1.16,158.98,158.85,3.31]
[1754179448265,1.16,158.98,158.87,3.31]
[1754179448465,1.16,158.98,158.88,3.31]
[1754179449269,1.16,158.95,158.89,3.31]
[1754179449673,1.16,158.98,158.84,3.31]
[1754179449966,1.16,158.98,158.86,3.31]
[1754179450169,6.2931,158.94,158.86,3.31]
[1754179450368,145.87,158.99,158.86,3.31]
[1754179450369,1.16,158.93,158.86,3.31]
[1754179451070,1.16,158.98,158.88,3.31]
[1754179452164,7.4539,158.92,158.88,3.31]
[1754179452361,7.4539,158.92,158.9,3.31]
[1754179452570,126.88,158.94,158.91,3.31]
[1754179452768,128.02,158.96,158.82,5.68873145]
[1754179453071,128.02,158.96,158.83,3.31]
[1754179453273,128.02,158.96,158.9,3.31]
[1754179453471,127.98,158.98,158.9,3.31]
[1754179453673,1.16,158.97,158.9,3.31]
[1754179453872,1.16,158.96,158.82,8.99873145]
[1754179454075,1.16,158.96,158.82,3.31]
[1754179454275,6.2931,158.94,158.83,3.31]
[1754179454474,1.16,158.94,158.83,3.31]
[1754179454973,6.2935,158.93,158.83,3.31]
[1754179455170,1.16,158.94,158.83,3.31]
[1754179455676,1.16,158.97,158.87,3.31]
[1754179456072,127.86,158.96,158.82,3.31]
[1754179456881,1.16,158.94,158.81,5.68873145]
[1754179457070,126.7,158.96,158.82,3.31]
[1754179457275,6.2923,158.96,158.82,3.31]
[1754179457476,1.16,158.97,158.82,3.31]
[1754179457779,6.2912,158.99,158.94,6.2927]
[1754179458079,1.16,158.98,158.95,3.31]
[1754179458278,1.16,158.98,158.95,9.6026]
[1754179458680,1.16,158.98,158.95,3.31]
[1754179459175,1.16,158.97,158.93,3.31]
[1754179459377,1.16,158.97,158.95,3.31]
[1754179459668,6.2913,158.99,158.95,3.31]
[1754179459867,1.16,158.98,158.95,3.31]
[1754179461373,7.4515,158.98,158.95,3.31]
[1754179461680,1.16,158.97,158.85,3.31]
[1754179462675,1.16,158.95,158.85,3.31]
[1754179462877,1.16,158.94,158.85,3.31]
[1754179463879,1.16,158.91,158.88,3.31]
[1754179464077,126.2,158.95,158.88,3.31]
[1754179464279,1.16,158.9,158.88,3.31]
[1754179464482,1.16,158.9,158.82,3.31]
[1754179466484,1.16,158.94,158.83,5.66268065]
[1754179466680,1.16,158.94,158.84,3.31]
[1754179466681,4.3817798,158.93,158.84,3.31]
[1754179466881,1.16,158.94,158.84,3.31]
[1754179467078,4.38177899,158.93,158.84,3.31]
[1754179467276,1.16,158.97,158.84,3.31]
[1754179467480,144.89,158.98,158.84,3.31]
[1754179467481,1.16,158.95,158.84,5.66268065]
[1754179467685,4.38377612,158.94,158.88,3.31]
[1754179467885,4.38377612,158.93,158.88,3.31]
[1754179468186,1.16,158.91,158.88,9.6053]
[1754179468386,1.16,158.91,158.84,5.66268065]
[1754179468579,26.00186897,158.97,158.81,5.66268065]
[1754179468785,6.293,158.94,158.83,3.42]
[1754179469086,4.38753068,158.93,158.85,3.42]
[1754179469275,4.38753068,158.92,158.89,3.42]
[1754179469480,5.54753068,158.92,158.89,3.42]
[1754179469684,4.39125741,158.91,158.89,3.42]
[1754179469875,1.16,158.92,158.89,3.42]
[1754179470886,4.3940873,158.91,158.89,3.42]
[1754179471087,1.16,158.92,158.89,3.42]
[1754179471282,4.39625087,158.91,158.89,3.42]
[1754179471584,1.16,158.92,158.89,3.42]
[1754179471780,4.39672634,158.91,158.89,3.42]
[1754179471982,1.16,158.95,158.84,3.42]
[1754179472184,4.39657183,158.94,158.86,3.42]
[1754179472481,4.39657183,158.93,158.88,3.42]
[1754179472786,4.39657183,158.92,158.91,3.42]
[1754179473687,5.55657183,158.92,158.83,5.69769732]
[1754179473888,4.39657183,158.91,158.85,3.42]
[1754179474084,6.2931,158.94,158.89,6.295]
[1754179474281,5.55161218,158.93,158.9,3.42]
[1754179474582,4.39161218,158.92,158.9,3.42]
[1754179474784,4.39161218,158.91,158.9,3.42]
[1754179475387,5.55161218,158.91,158.88,3.42]
[1754179475583,1.16,158.91,158.89,9.11769732]
[1754179475783,4.39715106,158.9,158.89,3.42]
[1754179475982,4.39715106,158.9,158.89,9.11769732]
[1754179476186,7.4537,158.93,158.89,9.11769732]
[1754179476187,7.4537,158.93,158.9,3.42]
[1754179476390,4.39960616,158.92,158.81,3.42]
[1754179476583,4.39960616,158.91,158.83,3.42]
[1754179476783,20.07,158.96,158.84,5.70787271]
[1754179476983,5.55984785,158.95,158.86,3.42]
[1754179477187,10.69294785,158.94,158.88,3.42]
[1754179477489,4.39984785,158.93,158.91,3.42]
[1754179477690,4.39984785,158.92,158.91,3.42]
[1754179477992,5.55984785,158.92,158.9,3.42]
[1754179478193,4.39984785,158.91,158.81,3.42]
[1754179478388,1.16,158.94,158.82,5.71557759]
[1754179478695,1.16,158.92,158.84,3.42]
[1754179478992,4.40619738,158.91,158.86,3.42]
[1754179479293,4.40619738,158.9,158.89,3.42]
[1754179479493,4.40619738,158.9,158.89,9.13557759]
[1754179479690,1.16,158.92,158.89,9.13557759]
[1754179479892,4.40937996,158.91,158.9,9.13557759]
[1754179481282,5.56937996,158.91,158.9,5.71557759]
[1754179481487,5.56937996,158.91,158.9,4.55557759]
[1754179481797,5.56937996,158.91,158.84,3.42]
[1754179481798,11.50124893,158.91,158.84,3.42]
[1754179481994,4.40937996,158.9,158.84,3.42]
[1754179482187,4.40937996,158.89,158.85,3.42]
[1754179482382,4.40937996,158.88,158.86,3.42]
[1754179482586,4.40937996,158.87,158.78,3.42]
[1754179482788,29.54780346,158.92,158.78,3.42]
[1754179482789,4.40937996,158.86,158.78,3.42]
[1754179482994,4.40937996,158.85,158.78,3.42]
[1754179483190,4.40937996,158.84,158.78,3.42]
[1754179483493,4.40937996,158.83,158.82,9.7178]
[1754179484290,4.40937996,158.83,158.82,3.42]
[1754179484494,4.40937996,158.83,158.81,6.2981]
[1754179484695,4.40937996,158.82,158.74,124.8]
[1754179484895,4.40937996,158.81,158.76,3.42]
[1754179485198,4.40937996,158.8,158.76,6.2999]
[1754179485391,4.40937996,158.79,158.77,3.42]
[1754179485588,4.40937996,158.78,158.77,3.42]
[1754179486590,4.40937996,158.78,158.69,3.42]
[1754179486791,4.40937996,158.77,158.69,3.42]
[1754179486997,4.40937996,158.76,158.75,9.7205]
[1754179487297,7.09186897,158.83,158.75,3.42]
[1754179488300,7.09186897,158.84,158.75,3.42]
[1754179488792,6.2974,158.83,158.79,3.42]
[1754179489097,124.56,158.87,158.68,547.74]
[1754179489098,7.09186897,158.85,158.81,3.42]
[1754179489297,7.09186897,158.85,158.69,3.42]
[1754179489693,7.09186897,158.86,158.69,3.42]
[1754179489996,7.09186897,158.86,158.82,3.42]
[1754179490199,26.00186897,158.88,158.69,3.42]
[1754179491093,6.2963,158.86,158.82,3.42]
[1754179491291,6.2963,158.86,158.83,3.42]
[1754179491491,6.2959,158.87,158.83,9.7173]
[1754179491997,430.09186897,158.89,158.85,3.42]
[1754179491998,423.0,158.89,158.85,3.42]
[1754179492192,6.2957,158.88,158.83,9.7171]
[1754179492393,6.2957,158.88,158.84,3.42]
[1754179492697,423.0,158.89,158.71,12.6043]
[1754179492892,7.09186897,158.9,158.86,3.42]
[1754179493092,6.2946,158.91,158.87,3.42]
[1754179494697,6.2946,158.91,158.87,9.7158]
[1754179495094,6.2946,158.91,158.87,3.42]
[1754179495396,7.09186897,158.91,158.77,9.12024163]
[1754179495699,7.09186897,158.9,158.82,6.2977]
[1754179495904,6.2961,158.87,158.83,5.70024163]
[1754179496198,6.2961,158.87,158.84,5.70024163]
[1754179496400,7.09186897,158.91,158.83,3.42]
[1754179496594,7.09186897,158.91,158.84,9.12055281]
[1754179496795,7.09186897,158.91,158.84,3.42]
[1754179497295,6.2958,158.87,158.84,3.42]
[1754179497897,7.09186897,158.91,158.77,3.54]
[1754179498095,131.37186897,158.93,158.79,3.54]
[1754179498401,131.37186897,158.93,158.81,3.54]
[1754179498594,6.2941,158.92,158.82,5.69590666]
[1754179498790,6.2941,158.92,158.84,3.54]
[1754179498994,124.28,158.93,158.88,6.2953]
[1754179499292,124.28,158.93,158.9,3.54]
[1754179500293,6.2941,158.92,158.9,3.54]
[1754179501502,6.2932,158.94,158.91,3.54]
[1754179501802,131.01186897,158.96,158.91,3.54]
[1754179502202,6.2938,158.92,158.89,3.54]
[1754179502600,6.2935,158.93,158.9,3.54]
[1754179503103,7.09186897,158.97,158.78,3.54]
[1754179503292,6.2929,158.95,158.78,3.54]
[1754179503497,6.2929,158.95,158.8,3.54]
[1754179503695,6.2922,158.96,158.92,6.2937]
[1754179503894,6.2922,158.96,158.94,3.54]
[1754179504703,546.8,158.98,158.94,3.54]
[1754179505205,546.8,158.98,158.79,423.08]
[1754179505206,553.89186897,158.98,158.8,3.54]
[1754179505396,6.2929,158.95,158.91,3.54]
[1754179505598,6.2929,158.95,158.92,3.54]
[1754179505903,553.89186897,158.98,158.89,6.2949]
[1754179506098,7.09186897,158.97,158.9,3.54]
[1754179506298,7.09186897,158.96,158.8,3.54]
[1754179506804,7.09186897,158.96,158.89,3.54]
[1754179507007,7.09186897,158.97,158.89,3.54]
[1754179507208,430.21186897,158.98,158.9,3.54]
[1754179507404,546.5,158.98,158.9,3.54]
[1754179507710,552.7915,158.98,158.94,3.54]
[1754179508001,7.09186897,159.01,158.94,3.54]
[1754179508204,6.2908,159.0,158.94,3.54]
[1754179508404,123.48,159.02,158.94,3.54]
[1754179508705,6.2905,159.01,158.96,6.292]
[1754179509207,123.48,159.02,158.97,3.54]
[1754179509505,123.48,159.02,158.83,3.54]
[1754179509703,6.2913,158.99,158.95,9.8326]
[1754179509907,6.2913,158.99,158.95,6.2926]
[1754179510200,149.48186897,159.02,158.83,123.48]
[1754179510403,7.09186897,159.01,158.94,3.54]
[1754179510595,18.91,159.0,158.94,3.54]
[1754179510794,18.91,159.0,158.82,12.5952]
[1754179511003,26.00186897,159.0,158.83,3.54]
[1754179511408,26.00186897,159.0,158.91,6.2939]
[1754179511607,18.91,158.98,158.8,3.54]
[1754179511811,6.2923,158.96,158.8,3.54]
[1754179512102,123.46,158.97,158.8,3.54]
[1754179512306,6.2927,158.95,158.9,6.2943]
[1754179512497,6.2927,158.95,158.91,3.54]
[1754179512700,18.91,158.96,158.79,546.52]
[1754179512909,6.2941,158.92,158.87,6.2954]
[1754179513110,18.91,158.96,158.89,3.54]
[1754179513307,26.00186897,158.96,158.87,3.54]
[1754179513507,18.91,158.94,158.87,3.54]
[1754179514104,6.2942,158.92,158.87,3.54]
[1754179515215,6.2942,158.92,158.88,6.2954]
[1754179515608,6.2942,158.92,158.9,3.54]
[1754179517316,18.91,158.96,158.88,3.54]
[1754179517523,26.00186897,158.96,158.88,3.54]
[1754179517708,18.91,158.94,158.8,3.54]
[1754179518009,26.00186897,158.92,158.8,3.54]
[1754179518313,7.09186897,158.91,158.8,3.54]
[1754179518507,123.26,158.9,158.82,3.54]
[1754179519308,6.2966,158.86,158.82,3.54]
[1754179519507,123.26,158.9,158.83,3.54]
[1754179520201,123.26,158.9,158.84,3.54]
[1754179521010,129.555,158.9,158.85,6.2964]
[1754179521210,6.295,158.9,158.76,3.54]
[1754179521411,130.21186897,158.94,158.76,3.54]
[1754179521712,6.2947,158.9,158.86,3.54]
[1754179522213,6.2947,158.9,158.87,3.54]
[1754179522413,130.21186897,158.94,158.87,3.54]
[1754179522619,7.09186897,158.93,158.85,3.54]
[1754179522909,6.2959,158.87,158.85,3.54]
[1754179523113,6.2959,158.87,158.76,3.54]
[1754179523315,7.09186897,158.92,158.76,3.54]
[1754179523514,6.2943,158.91,158.76,3.54]
[1754179524210,6.295,158.9,158.76,3.54]
[1754179524407,130.19186897,158.94,158.76,3.54]
[1754179524615,6.2943,158.91,158.87,6.2958]
[1754179524807,130.19186897,158.94,158.76,3.54]
[1754179525014,149.10186897,158.94,158.76,3.54]
[1754179525213,6.2947,158.9,158.86,6.2959]
[1754179525508,6.2947,158.9,158.88,3.54]
[1754179525713,6.2947,158.9,158.86,6.2959]
[1754179525714,6.2947,158.9,158.89,3.54]
[1754179525915,6.2943,158.91,158.89,3.54]
[1754179526419,6.2943,158.91,158.88,6.2954]
[1754179526713,26.00186897,158.97,158.76,3.54]
[1754179526909,148.94186897,158.97,158.88,6.2954]
[1754179527110,6.2953,158.89,158.76,3.54]
[1754179527311,6.2953,158.89,158.77,3.54]
[1754179527516,26.00186897,158.95,158.76,12.5997]
[1754179527816,26.00186897,158.94,158.81,3.54]
[1754179528314,6.2949,158.9,158.87,3.32]
[1754179528517,6.2949,158.9,158.77,3.32]
[1754179528913,6.2949,158.9,158.87,6.2958]
[1754179529114,26.00186897,158.96,158.88,3.32]
[1754179529816,6.2941,158.92,158.89,3.32]
[1754179530322,6.2944,158.91,158.77,3.32]
[1754179530911,6.2939,158.92,158.77,3.32]
[1754179531328,6.2939,158.92,158.88,6.2951]
[1754179531619,6.2939,158.92,158.9,3.32]
[1754179531820,7.09186897,158.97,158.9,6.2944]
[1754179532021,129.87186897,158.97,158.91,3.32]
[1754179532322,129.87186897,158.97,158.92,3.32]
[1754179533019,6.2927,158.95,158.92,3.32]
[1754179533319,7.09186897,158.97,158.93,3.32]
[1754179533621,422.96,158.98,158.81,3.32]
[1754179533810,422.96,158.98,158.92,6.2935]
[1754179534016,6.2925,158.96,158.93,3.32]
[1754179534213,422.96,158.98,158.91,3.32]
[1754179534214,441.87,158.98,158.91,3.32]
[1754179534417,26.00186897,158.96,158.81,3.32]
[1754179534613,6.2946,158.9,158.81,3.32]
[1754179535024,122.68,158.92,158.81,3.32]
[1754179535423,6.2953,158.89,158.81,3.32]
[1754179535618,122.68,158.92,158.76,3.32]
[1754179535823,6.2952,158.89,158.76,3.32]
[1754179536020,148.68186897,158.92,158.75,138.19019101]
[1754179536230,148.68186897,158.92,158.76,3.32]
[1754179536520,148.68186897,158.92,158.81,6.2979]
[1754179536725,26.00186897,158.9,158.82,3.32]
[1754179537125,6.2965,158.86,158.83,3.32]
[1754179537320,7.09186897,158.88,158.81,3.32]
[1754179537520,6.2969,158.85,158.81,3.32]
[1754179537821,6.2969,158.85,158.82,3.32]
[1754179538029,6.2963,158.86,158.82,3.32]
[1754179538217,6.2963,158.86,158.83,3.32]
[1754179538922,26.00186897,158.89,158.83,3.32]
[1754179539527,7.09186897,158.89,158.83,3.32]
[1754179539729,148.48186897,158.91,158.83,3.32]
[1754179539930,7.09186897,158.9,158.83,3.32]
[1754179540330,6.2957,158.88,158.84,3.32]
[1754179540536,7.09186897,158.9,158.76,3.32]
[1754179540731,6.2947,158.9,158.85,6.2963]
[1754179541027,6.2947,158.9,158.87,3.32]
[1754179541232,6.2947,158.9,158.88,3.32]
[1754179542334,6.295,158.89,158.88,3.32]
[1754179542526,6.295,158.89,158.87,3.32]
[1754179543230,6.2947,158.9,158.87,3.32]
[1754179544735,122.48,158.91,158.76,3.32]
[1754179544935,26.00186897,158.9,158.76,3.32]
[1754179545131,7.09186897,158.88,158.76,3.32]
[1754179545331,6.2969,158.85,158.81,6.2979]
[1754179545526,7.09186897,158.88,158.75,3.32]
[1754179545733,7.09186897,158.89,158.75,3.32]
[1754179546031,7.09186897,158.88,158.74,423.02]
[1754179546230,26.00186897,158.88,158.81,3.32]
[1754179546636,6.2968,158.85,158.82,3.32]
[1754179546836,6.2968,158.85,158.81,6.2981]
[1754179547036,6.2968,158.85,158.84,3.32]
[1754179547237,7.09186897,158.89,158.84,3.32]
[1754179547435,7.09186897,158.89,158.83,3.32]
[1754179547832,7.09186897,158.88,158.83,3.32]
[1754179548044,7.09186897,158.88,158.75,3.32]
[1754179548437,6.2973,158.84,158.75,3.32]
[1754179548640,26.00186897,158.88,158.75,3.32]
[1754179548834,6.2977,158.83,158.78,6.299]
[1754179549034,7.09186897,158.86,158.79,3.32]
[1754179549640,6.2976,158.83,158.81,3.32]
[1754179550031,6.2978,158.82,158.81,3.32]
[1754179550933,6.2982,158.81,158.79,3.32]
[1754179551439,6.2985,158.8,158.79,3.32]
[1754179551642,26.00186897,158.86,158.79,3.32]
[1754179552435,7.09186897,158.86,158.79,3.32]
[1754179553040,26.00186897,158.87,158.79,3.32]
[1754179553245,6.2975,158.83,158.79,6.2989]
[1754179553437,6.2975,158.83,158.8,3.32]